bitfinex-derivatives/quotes_ETHF0:USTF0_20250730
["timestamp","ask_amount","ask_price","bid_price","bid_amount"]
[1753910090990,0.53113,3766.2,3766.1,0.9898]
[1753910091191,0.53113,3766.2,3766.1,1.614]
[1753910091391,0.53113,3766.2,3766.1,7.5779]
[1753910091690,18.68712,3766.3,3766.2,3.3335]
[1753910091893,18.156,3766.3,3766.2,3.3335]
[1753910092898,18.156,3766.3,3766.2,4.071]
[1753910095595,18.8984,3766.3,3766.2,4.071]
[1753910096387,18.156,3766.3,3766.2,4.071]
[1753910098687,1.3276,3766.9,3766.3,2.4817]
[1753910098887,4.24262,3767.0,3766.9,2.3282]
[1753910099091,4.54713676,3767.0,3766.9,2.3282]
[1753910099292,22.70313676,3767.0,3766.9,4.0803]
[1753910099801,23.44463676,3767.0,3766.9,4.0803]
[1753910099993,5.26141676,3767.0,3766.9,4.0803]
[1753910100195,4.68479258,3767.8,3767.7,1.1381]
[1753910100405,22.35711848,3767.8,3767.7,4.0803]
[1753910101001,23.60241848,3767.8,3767.7,4.0803]
[1753910101596,0.80856441,3767.8,3767.7,7.2881]
[1753910101801,0.94608258,3768.4,3768.3,1.5986]
[1753910102005,0.18479899,3768.4,3768.3,4.0803]
[1753910102303,0.94608258,3768.8,3768.7,3.9552]
[1753910102494,20.85268258,3768.8,3768.7,3.9552]
[1753910102694,23.25438258,3768.8,3768.7,3.9552]
[1753910102894,4.1523,3768.8,3768.7,3.9552]
[1753910103094,22.3083,3768.8,3768.7,3.9552]
[1753910103901,20.5711,3768.8,3768.7,1.1381]
[1753910104097,22.3083,3768.8,3768.7,3.2256]
[1753910104995,22.3083,3768.8,3768.7,3.9552]
[1753910105606,3.94164,3768.3,3768.2,0.5051]
[1753910105798,22.09364,3768.3,3768.2,1.1381]
[1753910105997,22.83514,3768.3,3768.2,2.7651]
[1753910106194,22.83514,3768.3,3768.2,0.633]
[1753910106406,22.83514,3768.3,3768.0,0.6231]
[1753910106599,4.68324,3767.6,3767.5,1.1381]
[1753910106805,4.68324,3767.6,3767.5,0.5051]
[1753910107005,18.152,3767.7,3767.2,4.8064]
[1753910107006,4.1523,3767.3,3767.2,4.8064]
[1753910107205,21.2988,3767.3,3767.2,7.163]
[1753910107407,21.82978,3767.3,3767.2,7.163]
[1753910108009,22.3033,3767.3,3767.2,7.163]
[1753910108401,20.5661,3767.3,3767.2,7.163]
[1753910108602,20.5661,3767.3,3767.2,3.9552]
[1753910108899,22.3033,3767.3,3767.2,3.9552]
[1753910109105,19.9016,3767.3,3767.2,3.9552]
[1753910109413,22.83428,3767.3,3767.2,1.1381]
[1753910109704,4.68332,3767.0,3766.9,2.142]
[1753910110009,22.83432,3767.0,3766.9,2.142]
[1753910111102,22.83432,3767.0,3766.9,2.7651]
[1753910111300,22.83432,3767.0,3766.9,3.2256]
[1753910112007,22.83432,3767.0,3766.9,2.142]
[1753910112409,22.83432,3767.0,3766.9,2.7651]
[1753910113305,21.5618,3767.0,3766.9,3.2256]
[1753910113508,18.151,3767.0,3766.9,3.9552]
[1753910113804,2.94601,3767.8,3767.7,1.1381]
[1753910114008,22.63488728,3767.8,3767.7,2.7651]
[1753910114212,23.63938728,3767.8,3767.7,2.7651]
[1753910114509,23.63938728,3767.8,3767.7,2.142]
[1753910115111,23.63938728,3767.8,3767.7,0.633]
[1753910115502,23.63938728,3767.8,3767.7,3.2256]
[1753910115809,4.68328,3767.3,3767.2,3.2256]
[1753910116111,1.6736,3766.7,3766.6,2.6025]
[1753910116413,3.67886,3766.7,3766.6,3.9552]
[1753910116712,4.68336,3766.7,3766.6,3.9552]
[1753910116907,4.68336,3766.7,3766.6,3.2256]
[1753910117214,4.68336,3766.7,3766.6,3.9552]
[1753910117407,2.28166,3766.7,3766.6,0.633]
[1753910117613,4.68336,3766.7,3766.6,2.142]
[1753910117801,4.68336,3766.7,3766.6,2.7651]
[1753910118510,4.68336,3766.7,3765.8,3.60611645]
[1753910118511,2.1743,3766.7,3765.8,0.39831645]
[1753910118703,3.27743,3766.2,3766.1,0.9656]
[1753910118904,0.53113,3766.2,3766.1,3.9552]
[1753910119413,18.75313,3766.2,3766.1,3.9552]
[1753910119712,18.222,3766.2,3766.1,3.9552]
[1753910119909,0.5311,3766.5,3766.4,0.5051]
[1753910120108,0.53109,3766.6,3766.4,1.5986]
[1753910120318,4.68329,3767.2,3767.1,3.9552]
[1753910120612,22.90629,3767.2,3767.1,3.9552]
[1753910120812,22.90629,3767.2,3767.1,3.2256]
[1753910121210,2.20463,3766.9,3766.8,2.8716]
[1753910121408,22.90633,3766.9,3766.8,3.2256]
[1753910121810,1.69938,3766.6,3766.5,2.7651]
[1753910122115,22.16288,3766.6,3766.5,2.7651]
[1753910122302,22.90438,3766.6,3766.5,2.7651]
[1753910122615,22.90438,3766.6,3766.5,3.2256]
[1753910123115,22.90438,3766.6,3766.5,2.6025]
[1753910123819,22.90438,3766.6,3766.5,2.142]
[1753910124915,22.90438,3766.6,3766.5,2.7651]
[1753910125711,2.06911,3766.9,3766.0,0.53115]
[1753910125915,4.68333,3766.9,3766.8,1.1381]
[1753910126115,23.7178992,3766.9,3766.8,2.142]
[1753910127104,1.3345992,3766.9,3766.8,3.9552]
[1753910127316,18.76203,3766.9,3766.8,3.9552]
[1753910127717,18.231,3766.9,3766.8,3.9552]
[1753910128516,0.53103,3767.0,3766.8,3.9552]
[1753910128714,18.237,3766.9,3766.8,1.5986]
[1753910129218,18.237,3766.9,3766.8,4.0097]
[1753910129420,18.9564,3766.9,3766.8,4.0097]
[1753910130011,19.4224,3766.9,3766.8,4.0097]
[1753910130917,19.9325,3766.9,3766.8,4.0097]
[1753910131119,21.3672,3766.9,3766.8,4.0097]
[1753910132316,22.3382,3766.9,3766.8,4.0097]
[1753910132723,4.63229,3766.5,3766.4,3.2585]
[1753910132925,22.85829,3766.5,3766.4,3.2585]
[1753910133819,22.85829,3766.5,3766.4,0.6244]
[1753910135326,22.85829,3766.5,3766.4,4.0224]
[1753910136125,18.75709,3766.5,3766.4,4.0224]
[1753910136725,19.47649,3766.5,3766.4,4.0224]
[1753910136918,20.45259,3766.5,3766.4,4.0224]
[1753910137923,22.85829,3766.5,3766.4,0.4808]
[1753910139225,22.85829,3766.5,3766.1,3.2585]
[1753910139226,4.63233,3766.2,3766.1,3.2585]
[1753910141829,4.63233,3766.2,3766.1,4.0224]
[1753910145428,0.7705,3766.7,3766.2,2.14243]
[1753910145724,0.7194,3767.2,3766.1,1.32785]
[1753910145931,1.25039,3767.2,3767.1,4.0224]
[1753910146134,20.27048082,3767.2,3767.1,4.0224]
[1753910146326,23.65228082,3767.2,3767.1,2.7524]
[1753910147131,23.65228082,3767.2,3767.1,3.2585]
[1753910147326,22.85019,3767.2,3767.1,3.2585]
[1753910148530,1.6955,3767.2,3767.1,4.55341]
[1753910148837,0.53095,3767.5,3767.4,4.0224]
[1753910149029,19.54404353,3767.5,3767.4,4.0224]
[1753910149429,20.72944353,3767.5,3767.4,4.0224]
[1753910149637,21.23954353,3767.5,3767.4,4.0224]
[1753910150137,21.87215,3767.5,3767.4,4.0224]
[1753910150431,4.63215,3767.5,3767.4,4.0224]
[1753910150636,21.87415,3767.5,3767.4,4.0224]
[1753910151524,22.84515,3767.5,3767.4,4.0224]
[1753910152536,0.53092,3767.8,3767.7,1.6113]
[1753910152844,19.53756588,3767.8,3767.7,4.0224]
[1753910153333,20.25696588,3767.8,3767.7,4.0224]
[1753910154233,0.7194,3767.8,3767.7,4.0224]
[1753910154431,0.5309,3767.9,3767.8,4.0224]
[1753910154825,18.73688,3768.0,3767.8,2.1422]
[1753910155028,18.73688,3768.0,3767.9,4.0224]
[1753910155431,19.45628,3768.0,3767.9,4.0224]
[1753910155738,22.83808,3768.0,3767.9,4.0224]
[1753910157444,18.206,3768.0,3767.9,4.55329]
[1753910157738,18.206,3768.0,3767.9,4.0224]
[1753910158935,20.5403,3768.0,3767.9,4.0224]
[1753910159134,22.233,3768.0,3767.9,4.0224]
[1753910159538,4.04281819,3768.0,3767.9,4.0224]
[1753910161240,4.04281819,3768.0,3767.9,4.55329]
[1753910161442,1.68591819,3768.0,3767.9,4.0224]
[1753910161638,0.01581819,3768.0,3767.9,4.0224]
[1753910164044,1.6701,3768.6,3768.5,2.821]
[1753910164244,1.608,3768.6,3768.0,4.7743]
[1753910164541,4.0124,3768.1,3768.0,3.8574]
[1753910164743,1.608,3767.9,3767.8,1.6403]
[1753910164939,4.0124,3767.9,3767.8,3.6692]
[1753910166543,4.0124,3767.9,3767.8,4.3883]
[1753910171850,2.3197,3767.6,3767.5,2.82185]
[1753910172156,4.0124,3767.6,3767.5,2.82185]
[1753910172451,4.0124,3767.6,3767.5,4.37895]
[1753910173255,1.6701,3767.6,3767.5,4.37895]
[1753910173750,0.7117,3767.6,3767.5,4.37895]
[1753910173948,3.0304,3767.6,3767.5,4.37895]
[1753910174153,4.0124,3767.6,3767.5,4.37895]
[1753910175050,3.0304,3767.6,3767.5,4.37895]
[1753910175241,1.6701,3767.6,3767.5,4.37895]
[1753910177847,2.3808,3767.6,3767.5,4.37895]
[1753910178154,4.0124,3767.6,3767.5,4.37895]
[1753910181957,0.7117,3767.6,3767.5,4.37895]
[1753910182546,0.7117,3767.6,3767.1,1.54223345]
[1753910182547,3.3007,3767.9,3767.8,4.37891]
[1753910183055,4.0124,3767.9,3767.8,4.37891]
[1753910183255,4.0124,3767.9,3767.8,3.1289]
[1753910184055,4.0124,3767.9,3767.8,2.6665]
[1753910184254,0.9584,3767.3,3767.2,1.02538]
[1753910184457,4.0124,3767.3,3767.2,3.19748]
[1753910184657,4.0124,3767.3,3767.2,3.65988]
[1753910186255,1.3272,3768.1,3767.2,3.65988]
[1753910186460,4.0124,3768.1,3768.0,1.1094]
[1753910186656,4.54327,3768.1,3768.0,3.1289]
[1753910186958,4.0124,3767.7,3767.6,3.77403]
[1753910187360,4.0124,3767.7,3767.6,4.37893]
[1753910187753,4.0124,3767.7,3767.6,3.1289]
[1753910187958,4.0124,3767.4,3767.3,1.0993]
[1753910188158,4.0124,3767.4,3767.3,2.24528]
[1753910188361,4.0124,3767.4,3767.3,3.19748]
[1753910188759,4.0124,3767.4,3767.3,4.36478]
[1753910188959,3.0304,3767.4,3767.3,4.36478]
[1753910190161,1.20772,3767.8,3767.3,1.7722]
[1753910190372,3.9344,3767.8,3767.7,3.7562]
[1753910190764,3.9344,3767.8,3767.7,2.0041]
[1753910191064,1.6048,3767.6,3767.5,1.61524]
[1753910191265,3.9344,3767.6,3767.5,3.12344]
[1753910191765,3.9344,3767.6,3767.5,4.28714]
[1753910194670,3.9344,3767.6,3767.5,0.53094]
[1753910194868,3.9344,3767.5,3767.4,0.53096]
[1753910195066,3.9344,3767.4,3767.1,0.9198]
[1753910195258,0.53096,3767.5,3767.1,0.9198]
[1753910195259,3.9344,3767.2,3767.1,0.531]
[1753910195565,0.53101,3767.1,3767.0,0.53102]
[1753910195766,4.46541,3767.1,3767.0,0.53102]
[1753910196367,0.9745,3766.9,3766.2,38.241]
[1753910196571,1.6048,3766.7,3766.6,0.53106]
[1753910196770,1.6048,3766.7,3766.6,0.98676]
[1753910197072,3.9344,3766.7,3766.6,1.61536]
[1753910197273,3.9344,3766.7,3766.6,2.53516]
[1753910197571,0.53108,3766.6,3766.2,38.241]
[1753910197878,3.9344,3766.3,3766.2,1.57523]
[1753910198073,3.9344,3766.3,3766.2,3.58243]
[1753910199468,3.9344,3766.3,3766.2,4.28733]
[1753910201468,3.9344,3766.3,3766.2,2.66263]
[1753910201874,3.9344,3766.3,3766.2,3.58243]
[1753910204071,3.9344,3766.3,3766.2,4.28733]
[1753910204272,2.9599,3766.3,3766.2,4.28733]
[1753910204475,2.2816,3766.3,3766.2,4.28733]
[1753910204674,1.6307,3766.3,3766.2,4.28733]
[1753910205564,1.837,3766.5,3766.4,4.2873]
[1753910205769,1.3551,3767.3,3766.7,4.28726]
[1753910206074,2.2831,3767.0,3766.9,3.7562]
[1753910206277,3.2576,3767.0,3766.9,3.7562]
[1753910206569,3.9344,3767.0,3766.9,4.28723]
[1753910206774,4.46542,3767.0,3766.9,3.0513]
[1753910206975,3.9344,3766.9,3766.8,0.53104]
[1753910207475,2.309,3766.2,3766.1,1.7892]
[1753910207677,3.9344,3766.2,3766.1,2.248]
[1753910207972,2.9599,3766.2,3766.1,3.7562]
[1753910208578,3.9344,3766.2,3766.1,4.28735]
[1753910210374,3.9344,3766.2,3766.1,0.53115]
[1753910210579,3.9344,3765.9,3765.8,2.93359645]
[1753910211165,3.9344,3765.9,3765.8,3.52199645]
[1753910211372,3.9344,3765.9,3765.8,2.99081645]
[1753910211577,3.9344,3765.9,3765.8,2.40241645]
[1753910211981,3.9344,3765.9,3765.8,2.86121645]
[1753910212172,3.9344,3765.9,3765.8,3.44961645]
[1753910212368,0.53111,3766.4,3765.8,4.15451645]
[1753910212569,3.9344,3766.4,3766.3,3.58242]
[1753910212777,0.9539,3766.5,3766.4,2.77909]
[1753910212977,2.2831,3766.5,3766.4,4.28729]
[1753910213277,3.2576,3766.5,3766.4,4.28729]
[1753910213482,2.5793,3766.9,3766.8,3.0513]
[1753910213680,1.6048,3766.7,3766.6,0.53107]
[1753910213879,2.5793,3766.7,3766.6,3.58237]
[1753910214080,3.2576,3766.7,3766.6,4.28727]
[1753910214878,3.9344,3766.7,3766.6,3.58237]
[1753910215181,3.9344,3766.7,3766.6,4.28727]
[1753910215976,2.5793,3767.3,3767.2,2.53508]
[1753910216176,1.6048,3767.0,3766.9,2.0041]
[1753910216377,3.9344,3767.0,3766.9,2.0041]
[1753910216572,3.9344,3767.0,3766.9,0.6286]
[1753910216773,3.9344,3766.8,3766.7,0.53106]
[1753910216977,2.2831,3766.3,3766.2,1.6727]
[1753910217178,3.9344,3766.3,3766.2,3.12363]
[1753910217384,3.9344,3766.3,3766.2,0.53113]
[1753910218081,3.9344,3766.3,3766.2,1.15973]
[1753910218379,3.9344,3766.3,3766.2,2.53523]
[1753910218581,3.9344,3766.3,3766.2,3.12363]
[1753910218781,3.9344,3766.3,3766.2,3.58243]
[1753910220779,2.9978,3766.7,3766.6,4.16467]
[1753910221078,3.164,3767.0,3766.9,2.03663]
[1753910221282,3.8913,3767.0,3766.9,4.16463]
[1753910221880,3.8913,3767.0,3766.9,3.49883]
[1753910222386,2.9978,3767.0,3766.9,4.16463]
[1753910222683,0.6991,3767.8,3767.4,2.0685]
[1753910222885,2.9978,3767.8,3767.7,3.49872]
[1753910223085,2.4649,3768.5,3768.4,2.9678]
[1753910223281,3.26992046,3768.5,3768.2,0.53084]
[1753910223484,2.4649,3768.2,3768.1,0.53086]
[1753910223686,4.69632046,3768.2,3768.1,4.16446]
[1753910224080,4.69632046,3768.2,3768.1,3.49866]
[1753910225186,4.69632046,3768.2,3768.1,2.93576]
[1753910225979,4.69632046,3768.2,3768.1,2.47776]
[1753910226681,4.69632046,3768.2,3768.1,2.93576]
[1753910226984,4.69632046,3768.2,3765.5,4.70657257]
[1753910226985,2.90727046,3768.2,3767.8,0.8993]
[1753910227284,3.8913,3768.0,3767.9,2.93579]
[1753910227478,3.96957334,3768.0,3767.9,1.0476]
[1753910227682,4.69687334,3768.0,3767.9,1.0476]
[1753910229087,3.8913,3768.0,3767.9,1.0476]
[1753910230477,3.8913,3768.0,3767.9,1.9469]
[1753910231287,3.8913,3768.0,3767.9,2.5098]
[1753910232189,3.8913,3768.0,3767.9,1.1562]
[1753910232390,1.5714,3767.7,3767.6,2.9678]
[1753910232698,3.8913,3767.7,3767.6,3.6336]
[1753910233294,2.2705,3767.7,3767.6,2.9678]
[1753910233495,3.8913,3767.7,3767.6,2.9678]
[1753910233693,3.52872,3767.7,3767.4,0.53095]
[1753910233893,3.8913,3767.5,3767.4,2.47785]
[1753910234094,3.8913,3767.5,3767.4,3.49875]
[1753910234294,3.8913,3767.5,3767.4,4.16455]
[1753910234497,3.8913,3767.5,3767.4,3.49875]
[1753910234796,1.5714,3767.3,3767.2,2.03658]
[1753910234990,3.8913,3767.3,3767.2,3.49878]
[1753910235191,3.8913,3767.3,3767.2,2.9678]
[1753910236192,3.52879,3767.2,3766.6,1.4622]
[1753910236504,0.4583,3766.7,3766.6,4.16468]
[1753910237898,2.2705,3766.9,3766.8,2.03665]
[1753910238098,2.2705,3766.9,3766.8,4.14865]
[1753910238293,2.9978,3766.9,3766.8,4.14865]
[1753910238488,3.8913,3766.9,3766.8,4.14865]
[1753910248205,1.5714,3766.6,3766.5,38.77409]
[1753910248400,3.8913,3766.6,3766.5,56.93209]
[1753910248889,3.8913,3766.6,3766.5,58.64170868]
[1753910249091,3.8913,3766.6,3766.5,19.28599]
[1753910249304,3.8913,3766.6,3766.5,20.69969]
[1753910249500,3.8913,3766.6,3766.5,21.71699]
[1753910250298,3.8913,3766.6,3766.5,22.36519]
[1753910254404,2.9978,3766.6,3766.5,22.36519]
[1753910254605,0.7029,3767.4,3766.9,3.94716]
[1753910254802,0.53086,3768.2,3767.4,0.5377]
[1753910254995,1.5699,3767.9,3767.8,2.067]
[1753910255304,3.7429,3767.9,3767.8,3.5588]
[1753910255504,0.53091,3767.8,3767.5,0.5377]
[1753910255698,3.7429,3767.6,3767.4,0.53096]
[1753910256008,3.7429,3767.5,3767.4,3.07926]
[1753910256400,3.7429,3767.5,3767.4,0.53096]
[1753910256599,3.7429,3767.5,3767.4,3.07926]
[1753910257210,3.7429,3767.5,3767.4,0.53096]
[1753910257899,3.7429,3767.5,3767.4,4.20706]
[1753910259207,1.5699,3767.5,3767.4,4.20706]
[1753910259406,2.2728,3767.5,3767.4,4.20706]
[1753910259610,3.7429,3767.5,3767.4,4.20706]
[1753910260109,2.8599,3767.5,3767.4,4.20706]
[1753910260608,3.7429,3767.5,3767.4,4.20706]
[1753910262102,2.8599,3767.5,3767.4,4.20706]
[1753910263406,3.7429,3767.5,3767.4,4.20706]
[1753910265323,3.7429,3767.5,3767.4,3.0279]
[1753910265605,3.7429,3767.5,3767.4,1.0565]
[1753910265912,3.7429,3767.5,3767.4,0.5969]
[1753910266112,3.7429,3767.5,3767.4,1.551]
[1753910271210,3.7429,3766.8,3766.7,3.55896]
[1753910271516,3.7429,3766.8,3766.7,21.71496]
[1753910272109,3.7429,3766.8,3766.7,19.6921]
[1753910272314,3.7429,3766.8,3766.7,19.2125]
[1753910272614,3.7429,3766.8,3766.7,20.1666]
[1753910273417,3.7429,3766.8,3766.7,20.7043]
[1753910274814,3.7429,3766.8,3766.7,21.8321]
[1753910278810,2.8599,3766.8,3766.7,21.8321]
[1753910279017,1.5699,3766.8,3766.7,21.8321]
[1753910280214,2.2671,3766.8,3766.7,21.8321]
[1753910280424,3.1312,3766.8,3766.7,21.8321]
[1753910280718,3.7411,3766.8,3766.7,21.8321]
[1753910280916,0.9065,3767.3,3767.2,0.53099]
[1753910281221,2.3009,3767.5,3767.4,1.4816]
[1753910281417,3.0777,3767.5,3767.4,3.6114]
[1753910281718,3.7749,3767.5,3767.4,2.9102]
[1753910282312,3.3197,3767.4,3767.3,19.6513]
[1753910282509,3.7749,3767.4,3767.3,20.6307]
[1753910282816,3.7749,3767.4,3767.3,21.0662]
[1753910284515,2.2136,3766.9,3766.8,2.92824]
[1753910284717,3.7749,3766.9,3766.8,21.08324]
[1753910285112,3.7749,3766.9,3766.8,22.29744]
[1753910285312,0.53097,3767.4,3767.1,0.531]
[1753910285514,3.7749,3767.2,3767.1,3.6114]
[1753910286021,3.7749,3767.2,3767.1,2.9102]
[1753910289919,3.60020258,3768.5,3767.1,2.9102]
[1753910289920,0.6972,3767.6,3767.1,2.3972]
[1753910290225,3.7749,3767.5,3767.4,2.9102]
[1753910292123,3.7749,3767.5,3767.4,2.4747]
[1753910292423,3.7749,3767.5,3767.4,1.9617]
[1753910294028,3.0777,3767.3,3767.2,18.154]
[1753910294221,3.7749,3767.3,3767.2,18.154]
[1753910294625,0.4513,3767.0,3766.5,0.9156]
[1753910294922,13.47970261,3770.5,3766.6,21.7644]
[1753910294923,3.7749,3766.7,3766.6,21.7644]
[1753910295126,1.6037,3766.7,3766.6,21.7644]
[1753910295319,2.3009,3766.7,3766.6,21.7644]
[1753910296830,3.165,3766.7,3766.6,21.7644]
[1753910297026,3.7749,3766.7,3766.6,21.7644]
[1753910297226,3.7749,3766.7,3766.6,24.9722]
[1753910301928,3.7749,3766.7,3766.6,6.8192]
[1753910302128,3.7749,3766.7,3766.6,3.2078]
[1753910303235,3.7749,3766.3,3766.2,22.9199]
[1753910303627,3.7749,3766.3,3766.2,3.2078]
[1753910307736,3.7749,3766.3,3766.2,5.6598]
[1753910311238,3.7749,3766.3,3766.2,5.1695]
[1753910312139,3.7749,3766.3,3766.2,2.4504]
[1753910312327,0.53117,3765.9,3765.8,3.60611645]
[1753910312527,4.21517,3765.9,3765.8,0.39831645]
[1753910313340,4.21517,3765.9,3765.8,1.30451645]
[1753910313536,3.684,3765.9,3765.8,2.35751645]
[1753910313836,3.684,3765.9,3765.8,3.94191645]
[1753910314036,3.684,3765.9,3765.8,0.39831645]
[1753910314740,3.684,3765.9,3765.8,2.40891645]
[1753910315039,3.684,3765.9,3765.8,2.84621645]
[1753910317242,3.684,3765.9,3765.8,3.26791645]
[1753910317630,1.3318,3766.3,3765.8,0.39831645]
[1753910317836,4.21513,3766.3,3766.2,2.1487]
[1753910318146,4.21513,3766.3,3766.2,0.6157]
[1753910319136,3.684,3766.3,3766.2,0.6157]
[1753910319440,3.684,3766.3,3766.2,2.05303]
[1753910320031,3.2078,3766.4,3766.2,2.00583]
[1753910320236,3.2078,3766.4,3766.3,3.5436]
[1753910320632,3.8746,3766.4,3766.3,3.5436]
[1753910320834,0.665,3766.6,3766.4,0.5311]
[1753910321038,3.2078,3767.0,3766.8,2.8696]
[1753910321339,1.091,3766.9,3766.8,4.07465]
[1753910321540,2.1963,3766.9,3766.8,4.07465]
[1753910322943,0.9254,3767.2,3766.3,1.3278]
[1753910322944,1.4268,3767.6,3767.5,2.00565]
[1753910323140,3.684,3767.6,3767.5,2.8696]
[1753910323950,3.684,3767.6,3767.5,2.4479]
[1753910324344,3.684,3767.2,3767.1,4.645]
[1753910324548,3.684,3767.2,3767.1,5.698]
[1753910324747,3.684,3767.2,3767.1,6.1867]
[1753910326551,3.684,3766.5,3766.4,2.8696]
[1753910327044,3.684,3766.5,3766.4,1.9592]
[1753910327248,3.684,3766.2,3766.1,1.58413]
[1753910327452,3.684,3766.2,3766.1,4.07473]
[1753910327747,3.684,3766.2,3766.1,3.5436]
[1753910330043,1.5313,3766.2,3766.1,3.5436]
[1753910330251,2.0936,3767.0,3766.9,1.053]
[1753910330445,2.0936,3767.0,3766.9,6.7514]
[1753910331040,2.7586,3767.0,3766.9,6.7514]
[1753910331340,1.5313,3767.2,3767.1,1.4747]
[1753910331541,3.684,3767.2,3767.1,3.5436]
[1753910332554,3.684,3767.1,3767.0,1.45702]
[1753910332754,3.684,3767.1,3767.0,3.40062]
[1753910332961,3.684,3767.4,3767.3,4.07457]
[1753910333156,2.1963,3767.4,3767.3,4.07457]
[1753910333349,2.7586,3767.4,3767.3,4.07457]
[1753910333549,3.684,3767.4,3767.3,4.07457]
[1753910336152,2.1963,3767.6,3767.5,3.58584]
[1753910336353,0.6668,3767.7,3767.5,1.4747]
[1753910336559,2.1963,3767.7,3767.6,3.0549]
[1753910336856,3.684,3767.7,3767.6,3.5436]
[1753910337854,2.0936,3767.7,3767.6,3.5436]
[1753910338050,0.9254,3768.0,3767.6,2.8696]
[1753910338256,2.7586,3767.9,3767.8,3.5436]
[1753910338458,3.684,3767.9,3767.8,3.5436]
[1753910338659,3.684,3767.9,3767.8,4.0745]
[1753910338855,38.247,3768.5,3767.1,1.53754097]
[1753910338856,38.77782,3768.5,3768.1,1.408]
[1753910339056,1.5248,3768.3,3768.2,3.4398]
[1753910339452,2.1116,3768.6,3768.5,1.408]
[1753910339656,2.7798,3768.6,3768.5,3.4398]
[1753910339855,3.619,3768.6,3768.5,2.7774]
[1753910340251,3.619,3768.6,3768.5,1.8862]
[1753910340466,0.53087,3768.1,3767.8,0.4648]
[1753910340661,3.619,3767.4,3767.3,2.351]
[1753910340860,3.619,3767.4,3767.3,2.7774]
[1753910341162,2.193,3767.4,3767.3,3.4398]
[1753910341364,3.619,3767.4,3767.3,3.4398]
[1753910342759,4.14996,3767.4,3767.1,3.2078]
[1753910342960,3.619,3767.3,3767.2,2.7774]
[1753910343459,3.619,3767.2,3767.1,5.9852]
[1753910343664,3.619,3767.2,3767.1,7.1786]
[1753910344264,3.619,3767.2,3767.1,6.6476]
[1753910346159,3.619,3767.2,3767.1,5.9852]
[1753910346462,3.619,3767.2,3766.8,0.6624]
[1753910346463,3.619,3766.7,3766.6,2.7774]
[1753910346663,3.619,3766.7,3766.6,0.9816]
[1753910346865,3.619,3766.7,3766.6,2.351]
[1753910347763,3.619,3766.6,3766.5,3.2078]
[1753910348565,3.619,3766.6,3766.5,5.094]
[1753910348762,3.619,3766.6,3766.5,5.5588]
[1753910349070,3.619,3766.6,3766.5,5.9852]
[1753910349367,2.1116,3767.1,3767.0,0.9816]
[1753910349568,3.619,3767.1,3767.0,1.4464]
[1753910349864,3.619,3767.1,3767.0,2.351]
[1753910350069,3.619,3767.1,3767.0,3.4398]
[1753910350269,3.619,3767.1,3767.0,2.7774]
[1753910354077,3.619,3767.1,3767.0,1.8862]
[1753910354268,1.479,3766.8,3766.7,3.4398]
[1753910354469,3.619,3766.8,3766.7,2.7774]
[1753910357864,0.97039,3767.3,3767.2,0.9816]
[1753910358066,2.84919,3767.3,3767.2,3.4398]
[1753910358266,2.84919,3767.3,3767.2,2.7774]
[1753910358469,3.48179,3767.3,3767.2,2.7774]
[1753910358674,4.14999,3767.3,3767.2,2.7774]
[1753910359071,2.7798,3767.3,3767.2,3.4398]
[1753910359470,3.619,3767.3,3767.2,3.4398]
[1753910360073,2.193,3767.3,3767.2,3.4398]
[1753910360473,2.7798,3767.3,3767.2,3.4398]
[1753910360672,3.619,3767.3,3767.2,3.4398]
[1753910360877,3.619,3767.3,3767.2,2.7774]
[1753910363072,2.7798,3767.3,3767.2,3.4398]
[1753910363267,3.619,3767.3,3767.2,3.4398]
[1753910363471,3.619,3767.3,3767.2,2.7774]
[1753910364675,3.619,3767.3,3767.2,1.8862]
[1753910365281,3.619,3767.3,3767.2,3.4398]
[1753910365580,2.7798,3767.3,3767.2,3.4398]
[1753910366881,1.072,3767.7,3767.6,1.408]
[1753910367076,2.193,3767.7,3767.6,3.4398]
[1753910367282,3.619,3767.7,3767.6,3.4398]
[1753910368378,1.5248,3767.7,3767.6,3.4398]
[1753910368577,2.7798,3768.0,3767.9,2.0704]
[1753910368779,3.6226,3768.0,3767.9,3.3501]
[1753910370881,3.6253,3768.0,3767.9,3.3501]
[1753910371081,3.6253,3768.0,3767.9,2.6877]
[1753910371283,3.6253,3768.0,3767.9,3.3148]
[1753910371982,2.1116,3768.0,3767.9,3.3148]
[1753910372182,1.5248,3768.0,3767.9,3.3148]
[1753910372581,0.6326,3768.0,3767.9,3.3148]
[1753910373390,1.4898,3768.0,3767.9,3.3148]
[1753910373581,3.5638,3768.0,3767.9,3.3148]
[1753910373783,3.5638,3768.0,3767.9,2.6877]
[1753910375886,0.9956,3767.6,3767.5,1.0073]
[1753910376086,3.6027,3767.6,3767.5,2.2627]
[1753910376685,3.6027,3767.6,3767.5,2.79365]
[1753910376885,3.6027,3767.6,3767.5,3.20925]
[1753910377996,3.6027,3767.5,3767.2,0.53099]
[1753910378290,3.6027,3767.4,3767.3,0.53097]
[1753910378496,3.6027,3767.4,3767.3,5.56477]
[1753910378693,3.6027,3767.4,3767.3,6.00147]
[1753910380395,3.6027,3767.4,3767.3,6.41707]